Cogmind - Beta 12 @@@ ROGUE MODE // 2023.09.19 @ 11:01:47 Player: DuckBoy Result: Destroyed by as-24573 with Assembled Heavy Rifle Performance ------------- Evolutions (0) 0 Regions Visited (4) 800 Robots Destroyed (36) 180 Value Destroyed (620) 620 Prototype IDs (23) 460 Alien Tech Used (0) 0 Bonus (300) 300 TOTAL SCORE: 2360 Bonus ------- Aligned with FarCom 300 Cogmind --------- Core Integrity 0/250 Matter 300/300 Energy 98/100 System Corruption 0% Temperature Cool (0) Movement Core (50) Location -9/Mines Parts ------- > --- POWER (1) -------- (None) > --- PROPULSION (2) --- (None) > --- UTILITY (2) ------ (None) > --- WEAPON (2) ------- (None) > --- INVENTORY (5) ---- Humpback Shotgun Shotgun Shotgun Peak State ------------ > --- POWER ------------ Light Nuclear Core > --- PROPULSION ------- Wheel Wheel > --- UTILITY ---------- Improved Heat Sink Huge Storage Unit > --- WEAPON ----------- Beam Rifle Beam Rifle > --- INVENTORY -------- Ion Engine Light Ion Engine Light Treads Light Treads Light Treads Small Storage Unit Structural Scanner Structural Scanner ECM Suite Weapon Shielding Hacking Suite Beam Rifle Particle Gun Particle Gun Particle Gun Particle Gun Beamcaster Assault Rifle Light Assault Rifle Light Assault Rifle Light Assault Rifle Shotgun Shotgun Shotgun Shotgun [Rating: 17] Favorites ----------- Power Light Nuclear Core Engine Light Ion Engine Power Core Light Nuclear Core Propulsion Wheel Treads Light Treads Wheel Wheel Utility Huge Storage Unit Device Improved Heat Sink Storage Huge Storage Unit Protection Weapon Shielding Weapon Beam Rifle Energy Gun Beam Rifle Ballistic Gun Light Assault Rifle Build | -11 -10 -10 -10 -9 ------- Run | Jun Mat Min Exi Min Slots Evolved . | . . . . . Power . | . . . . . Propulsion . | . . . . . Utility . | . . . . . Weapon . | . . . . . Parts Attached 28 | 6 20 2 . . Power 6 | 1 5 . . . Engine 5 | 1 4 . . . Core 1 | . 1 . . . Reactor . | . . . . . Propulsion 10 | 2 6 2 . . Treads 4 | . 4 . . . Leg . | . . . . . Wheel 6 | 2 2 2 . . Hover . | . . . . . Flight . | . . . . . Utility 4 | 1 3 . . . Device 1 | . 1 . . . Storage 2 | 1 1 . . . Processor . | . . . . . Hackware . | . . . . . Protection 1 | . 1 . . . Artifact . | . . . . . Weapon 8 | 2 6 . . . Energy Gun 3 | 1 2 . . . Energy Cannon . | . . . . . Ballistic Gun 5 | 1 4 . . . Ballistic Cannon . | . . . . . Launcher . | . . . . . Special Weapon . | . . . . . Impact Weapon . | . . . . . Slashing Weapon . | . . . . . Piercing Weapon . | . . . . . Special Melee Weapon . | . . . . . Unidentified Prototypes . | . . . . . Parts Lost 2 | . 1 . . 1 Power 1 | . 1 . . . Propulsion 1 | . . . . 1 Utility . | . . . . . Weapon . | . . . . . Highest Loss Streak 1 | . 1 . . 1 To Critical Strikes . | . . . . . Average Slot Usage (%) 95 | . 97 100 100 84 Engine 4 | . 9 . . . Core 8 | . 3 14 14 11 Treads 9 | . 18 . . . Wheel 17 | . 8 28 28 23 Device 6 | . 1 14 14 11 Storage 13 | . 14 14 14 11 Protection 6 | . 12 . . . Energy Gun 15 | . 4 28 28 23 Ballistic Gun 11 | . 23 . . . Naked Turns 73 | . . . . 73 Heaviest Build 92 | 11 92 92 92 92 Greatest Support 40 | 20 40 20 20 20 Greatest Overweight (x) 4 | . 4 4 4 4 Average Overweight (x) 2 | . . 4 4 2 Largest Inventory Capacity 25 | 8 25 25 25 25 Average Capacity 17 | 6 11 25 25 21 Most Carried 25 | 6 25 25 25 25 Average Carried 16 | 2 9 25 24 21 Final Capacity 25 | 8 25 25 25 5 Final Carried 25 | 6 25 25 25 5 Class Distribution -------------------- 65% | Mutant 34% | Scavenger-Mutant Dominant Class ---------------- Mutant | -10/Materials Mutant | -10/Mines Scavenger-Mutant | -10/Exiles Scavenger-Mutant | -9/Mines Resources | -11 -10 -10 -10 -9 ----------- Run | Jun Mat Min Exi Min Matter Collected 657 | 245 366 46 . . Remotely . | . . . . . Salvage Created 915 | . 670 219 . 26 Parts 72 | . 54 15 . 3 Haulers Intercepted 1 | . 1 . . . Recyclers Shooed 1 | . 1 . . . Parts Field Recycled . | . . . . . Retrieved Matter . | . . . . . Parts Self-Destructed . | . . . . . Prevented . | . . . . . Kills | -11 -10 -10 -10 -9 ------- Run | Jun Mat Min Exi Min Combat Hostiles Destroyed 24 | . 15 9 . . Guns 24 | . 15 9 . . Classes Destroyed 8 | . 7 . . 1 Worker 3 | . 1 2 . . Tunneler 1 | . . . . 1 Hauler 1 | . 1 . . . Recycler 1 | . 1 . . . Operator 3 | . 3 . . . Watcher 3 | . 3 . . . Swarmer 14 | . 6 8 . . Grunt 10 | . 9 1 . . Best Kill Streak 5 | . 4 5 . 1 Combat Bots Only 3 | . 3 3 . . Max Kills in Single Turn 2 | . 1 2 . 1 Gunslinging . | . . . . . Exploded . | . . . . . Melee . | . . . . . Uniques/NPCs Destroyed . | . . . . . Combat | -11 -10 -10 -10 -9 -------- Run | Jun Mat Min Exi Min Damage Taken 876 | . 522 201 . 153 Core 257 | . 106 80 . 71 Absorbed by Shields . | . . . . . Redirected to Shielding 40 | . 40 . . . Core Remaining (%) 100 | 100 . . . . Volleys Fired 100 | . 72 24 . 4 Largest 2 | . 2 2 . 2 Hottest 112 | . 60 112 . 112 Shots Fired 197 | . 141 48 . 8 Gun 197 | . 141 48 . 8 Cannon . | . . . . . Launcher . | . . . . . Special . | . . . . . Kinetic 119 | . 119 . . . Thermal 78 | . 22 48 . 8 Explosive . | . . . . . Electromagnetic . | . . . . . Robot Hit Streak 10 | . 10 4 . 6 Robot Miss Streak 7 | . 3 7 . 1 Penetration Max . | . . . . . Secondary Targets 2 | . 1 1 . . Max Gunslinging Chain 1 | . 1 1 . . Shots Hit Robots 116 | . 88 22 . 6 Core Hits 61 | . 46 12 . 3 Critical Kills . | . . . . . Critical Parts Destroyed . | . . . . . Critical Strikes 6 | . . 4 . 2 Burn 6 | . . 4 . 2 Melee Attacks . | . . . . . Impact . | . . . . . Slashing . | . . . . . Piercing . | . . . . . Sneak Attacks . | . . . . . Combat Hostiles . | . . . . . Follow-up Attacks . | . . . . . Damage Inflicted 1273 | . 855 332 . 86 Guns 1260 | . 852 322 . 86 Cannons . | . . . . . Explosions . | . . . . . Melee . | . . . . . Ramming 13 | . 3 10 . . Kinetic 690 | . 690 . . . Thermal 570 | . 162 322 . 86 Explosive . | . . . . . Electromagnetic . | . . . . . Impact . | . . . . . Slashing . | . . . . . Piercing . | . . . . . Highest Corruption . | . . . . . Average Corruption . | . . . . . Corruption Purged . | . . . . . Corruption Blocked . | . . . . . Overload Shots . | . . . . . Overflow Damage . | . . . . . Projectiles . | . . . . . Explosions . | . . . . . Melee . | . . . . . Knockbacks . | . . . . . Impact . | . . . . . Kinetic . | . . . . . Secondary . | . . . . . Self-Inflicted Damage 5 | . . 5 . . Shots . | . . . . . Rammed 4 | . 3 1 . . Targets Rammed 4 | . 3 1 . . Kicked . | . . . . . Crushed . | . . . . . Highest Temperature 216 | . 36 216 . 30 Average Temperature 45 | . 17 70 . 13 Received Heat Transfer 240 | . 204 36 . . Siege Activations . | . . . . . Robots Corrupted . | . . . . . Combat Hostiles . | . . . . . Parts Fried . | . . . . . Impact Corruptions . | . . . . . Robots Melted . | . . . . . Combat Hostiles . | . . . . . Parts Melted 2 | . . 2 . . Heat Transferred 1855 | . 375 1110 . 370 Parts Sabotaged . | . . . . . Parts Stolen . | . . . . . Parts Stripped . | . . . . . Power Chain Reactions . | . . . . . Missiles Intercepted . | . . . . . Alert | -11 -10 -10 -10 -9 ------- Run | Jun Mat Min Exi Min Peak Influence 251 | . 189 251 . 5 Initial 21 | . . 21 . . Average 88 | . 118 118 . 1 Maximum Alert Level 1 | . . 1 . . Low Security (%) 98 | 100 100 89 . 100 Level 1 1 | . . 10 . . Level 2 . | . . . . . Level 3 . | . . . . . Level 4 . | . . . . . Level 5 . | . . . . . High Security . | . . . . . Max Security . | . . . . . Squads Dispatched 4 | . 4 . . . Investigation 1 | . 1 . . . Extermination . | . . . . . Reinforcement 3 | . 3 . . . Assault . | . . . . . Garrison . | . . . . . Intercept . | . . . . . Searches Triggered . | . . . . . Construction Impeded . | . . . . . Haulers Reinforced . | . . . . . Active Scanning Responses . | . . . . . Cargo Convoy Interrupts . | . . . . . Stealth | -11 -10 -10 -10 -9 --------- Run | Jun Mat Min Exi Min Distress Signals 2 | . 1 . . 1 Communications Jammed . | . . . . . Distress Signals . | . . . . . Times Spotted 51 | . 26 7 . 18 Peak Tracking Total 17 | . 4 3 . 17 Tactical Retreats 3 | . . . . 3 Traps | -11 -10 -10 -10 -9 ------- Run | Jun Mat Min Exi Min Traps Triggered 3 | . 3 . . . Indirectly . | . . . . . Trap Hack Attempts . | . . . . . Triggered . | . . . . . Disarmed . | . . . . . Reprogrammed . | . . . . . Reused . | . . . . . Traps Extracted . | . . . . . Installed . | . . . . . Triggered . | . . . . . Exploded 1 | . . . 1 . Machines | -11 -10 -10 -10 -9 ---------- Run | Jun Mat Min Exi Min Machines Disabled . | . . . . . Max in Single Turn . | . . . . . Machines Repaired . | . . . . . Machines Sabotaged . | . . . . . Overloaded Fab Kills . | . . . . . Hacking | -11 -10 -10 -10 -9 --------- Run | Jun Mat Min Exi Min Machines Accessed 8 | . 6 . 2 . Terminals 5 | . 5 . . . Fabricators . | . . . . . Repair Stations . | . . . . . Recycling Units 1 | . 1 . . . Scanalyzers . | . . . . . Garrison Access . | . . . . . Total Hacks 13 | . 11 . 2 . Successful 4 | . 2 . 2 . Failed 9 | . 9 . . . Catastrophic 4 | . 4 . . . Database Lockouts . | . . . . . Manual 9 | . 8 . 1 . Terminals 8 | . 8 . . . Fabricators . | . . . . . Repair Stations . | . . . . . Recycling Units 3 | . 3 . . . Scanalyzers . | . . . . . Garrison Access . | . . . . . Terminal Hacks 3 | . 1 . 2 . Record 1 | . . . 1 . Robot Schematic 1 | . 1 . . . EX-Prototype ID Bank 1 | . . . 1 . Fabricator Hacks . | . . . . . Repair Station Hacks . | . . . . . Recycling Unit Hacks 1 | . 1 . . . Retrieve Components 1 | . 1 . . . Scanalyzer . | . . . . . Garrison Access Hacks . | . . . . . Unauthorized Hacks . | . . . . . Terminals . | . . . . . Fabricators . | . . . . . Repair Stations . | . . . . . Recycling Units . | . . . . . Scanalyzers . | . . . . . Garrison Access . | . . . . . Data Cores Recovered . | . . . . . Used . | . . . . . Hacking Detections 5 | . 5 . . . Full Trace Events . | . . . . . Feedback Events . | . . . . . Feedback Blocked . | . . . . . Robot Schematics Acquired 1 | . 1 . . . Robots Built . | . . . . . Authchips . | . . . . . Time . | . . . . . Total Robot Build Rating . | . . . . . Part Schematics Acquired . | . . . . . Parts Built . | . . . . . Authchips . | . . . . . Time . | . . . . . Total Part Build Rating . | . . . . . Parts Repaired . | . . . . . Time . | . . . . . Parts Recycled . | . . . . . Recycled Matter . | . . . . . Retrieved Matter . | . . . . . Retrieved Components 10 | . 10 . . . Parts Scanalyzed . | . . . . . Part Schematics Acquired . | . . . . . Parts Damaged . | . . . . . Bothacking | -11 -10 -10 -10 -9 ------------ Run | Jun Mat Min Exi Min Used RIF Installer . | . . . . . Robots Hacked . | . . . . . Non-combat . | . . . . . Combat . | . . . . . Robot Hacks Applied . | . . . . . Relay Couplers Released . | . . . . . Fabnet Peak Effective % . | . . . . . Robots Rewired . | . . . . . Allies Hacked . | . . . . . Hacks Repelled . | . . . . . Allies | -11 -10 -10 -10 -9 -------- Run | Jun Mat Min Exi Min Total Allies 1 | . . . . 1 Largest Group 1 | . . . . 1 Highest-Rated Group 31 | . . . . 31 Highest-Rated Ally 31 | . . . . 31 Total Orders . | . . . . . Ally Attacks . | . . . . . Total Damage . | . . . . . Kills . | . . . . . Allies Corrupted . | . . . . . Allies Melted . | . . . . . Intel | -11 -10 -10 -10 -9 ------- Run | Jun Mat Min Exi Min Robot Analysis Total . | . . . . . Derelict Logs Recovered . | . . . . . Drone Launches . | . . . . . Drone Recoveries . | . . . . . Exploration | -11 -10 -10 -10 -9 ------------- Run | Jun Mat Min Exi Min Turns Passed 2501 | 48 1255 361 333 504 Spaces Moved 1582 | 42 678 194 235 433 Core 149 | 1 1 . . 147 Treads 408 | . 408 . . . Legs . | . . . . . Wheels 1025 | 41 269 194 235 286 Hover . | . . . . . Flight . | . . . . . Fastest Speed 50 | 50 80 140 140 50 Average Speed 130 | 79 141 140 140 108 Slowest Speed 160 | 80 160 140 140 140 Overloaded Moves . | . . . . . Propulsion Burnouts . | . . . . . Robots Hopped . | . . . . . Cave-ins Triggered . | . . . . . Exploration Rate (%) 53 | 3 91 50 62 62 Regions Visited 4 Branch Regions 3 Pre-discovered Areas 1 | . . . 1 . Known Exits Taken . | . . . . . Unknown Exits Taken 4 | 1 1 1 1 . Scrap Searched 2 | . . 1 . 1 Spaces Dug . | . . . . . Terrain Destroyed . | . . . . . Melee . | . . . . . Projectile . | . . . . . AOE . | . . . . . Terrain Rammed . | . . . . . Walls Destroyed . | . . . . . Machines Disabled . | . . . . . Actions | -11 -10 -10 -10 -9 --------- Run | Jun Mat Min Exi Min Total 1837 | 53 846 238 241 459 Wait 74 | . 44 12 . 18 Move 1578 | 41 677 193 234 433 Hop . | . . . . . Pick Up 34 | 6 22 2 3 1 Fast Attach 15 | 6 9 . . . Attach . | . . . . . Detach . | . . . . . Swap 13 | . 11 2 . . Drop 19 | . 8 4 4 3 Fire 100 | . 72 24 . 4 Melee . | . . . . . Ram 1 | . . 1 . . Kick . | . . . . . Crush 3 | . 3 . . . Escape Stasis . | . . . . . Rewire . | . . . . . Trap . | . . . . . Miscellaneous . | . . . . . Route ------- -11/Junkyard -10/Materials (discovered 4 exits: [*Mat x3] / [*Min]) -10/Mines (discovered 2 exits: [*Mat] / *Exi) -10/Exiles -9/Mines History --------- Turn | Location | Event 15 | -11/Junkyard | Discovered new exit (range 16) 49 | -11/Junkyard | Entered Materials 81 | -10/Materials | Discovered new exit (range 7) 162 | -10/Materials | Discovered new exit (range 3) 307 | -10/Materials | Build established: Mutant 432 | -10/Materials | Discovered new exit (range 10) 550 | -10/Materials | Discovered new exit (range 15) 1304 | -10/Materials | Entered Mines 1314 | -10/Mines | Met a Derelict bent on vengeance 1364 | -10/Mines | Discovered new exit (range 15) 1379 | -10/Mines | Core integrity fell below 50% 1658 | -10/Mines | Deemed a non-threat by the Exiles lab entrance 1659 | -10/Mines | Discovered new exit (range 5) 1665 | -10/Mines | Entered Exiles 1700 | -10/Exiles | Met 8R-AWN 1720 | -10/Exiles | Met EX-HEX 1763 | -10/Exiles | Met EX-BIN 1780 | -10/Exiles | Aligned with FarCom system 1782 | -10/Exiles | Given EX-Vault access code 1817 | -10/Exiles | Opened EX-Vault 1828 | -10/Exiles | Found Gui. Plasma Cannon 1857 | -10/Exiles | Warned to stay clear of 0b10 Research branches 1868 | -10/Exiles | Build established: Scavenger-Mutant 1875 | -10/Exiles | Exiles lab attacked by MAIN.C 1916 | -10/Exiles | Learned location of Zion (-6) 1987 | -10/Exiles | Discovered new exit (range 10) 1998 | -10/Exiles | Left Exiles lab with Gui. Plasma Cannon 1998 | -10/Exiles | Entered Mines 2049 | -9/Mines | Received a Mining Laser from a helpful Derelict 2403 | -9/Mines | Assembled infested the area 2425 | -9/Mines | Core integrity fell below 20% 2429 | -9/Mines | Released all parts (4) 2502 | -9/Mines | Destroyed by as-24573 with Assembled Heavy Rifle Last Messages --------------- 02317_ CV-JK7(g) slips back into the shadows. 02340_ K-01 Serf collects debris. 02403_ ALERT: Infestation in the mines, dispatching Demolisher response squad. 02419_ GM-J5T destroyed. 02422_ as-45435 suffers critical hit (Burn). 02423_ Wheel destroyed. 02425_ Dropped Huge Storage Unit. 02425_ Lgt. Ion Engine crushed and broken. 02426_ K-01 Serf collects debris. 02426_ K-01 Serf destroyed. 02426_ Dropped Lgt. Nuclear Core. 02429_ Released Beam Rifle. 02429_ Released Imp. Heat Sink. 02429_ Released Wheel. 02430_ C-30 ARC bursts open, deploying its payload. 02430_ D-53 Grenadier unfolds itself. 02432_ as-69680 destroyed. 02432_ as-45435 destroyed. 02438_ K-01 Serf collects debris. Map ----- +----------------------------------------------------+ | ??# #####???# #????????????????????????????? | | ??# #???????# #????????????????????????????? | | ??# #???????# #????????????????????????????? | | ### ###?????# #????????????????????????????? | | ##????# #####????????????????????????? | | #????# #????????????????????????? | | #????##### #????????????????????????? | | ##????????# #???????###??????????????? | | ######?????????# #????### ##### #????????? | | ##??????????????# #???## %=%% #????????? | | #???????????????# #???# %% ?????????? | | #???????????????# ##### #??????????????? | | ????????????????# r! #???????????????? | | ????????????????#######!%=##???????????????? | | ###???????????????????# !##????????????????? | | ##???????????###????# #?????????????????? | | ########????# #???# ####??????????????? | | [ [*[[!#????# #?## #??????????????? | | [ =]![=#????# ## ##??????????????? | | ! %![#????# ##??????????????? | | #####[!#????# a#####?######???? | | ???#![#????# ### ##??? | | #??#[[###### #??? | | #####??#%! ## % #??? | | #??????#= ### ## ##??? | | ???????## ##### #?## @### #???? | | #???????# #????????# #?## ##???? | | ##??????# #???????# ??## ####????? | | ##?????# #????? ???######???????? | | #####?# #?? ???????????????? | | ### #? ???????????????? | | # ## #? < ##??????????????? | | ## ## ? ##???????????????? | | ?# ###?? #?????????????????? | | ?# #???? ??????????????????? | | ?# ##?????## ## #??????????????????? | | ?## ##???????###?## #???????????????????? | | ???####?????????????###????????????????????? | | ???????????????????????????????????????????? | | | | | | | | | | | | | | | | | | | | | | | +----------------------------------------------------+ Best States ------------- Heat Dissipation 39 Energy Generation 14 Energy Capacity 250 Matter Stores 300 Matter Capacity 300 Sight Range 16 Terrain Scan Density 10 Weapon Shielding 33 Evasion (%) 50 Recoil Reduction 2 Item Schematics ----------------- None Robot Schematics ------------------ M-13 Machinist | -10/Materials | Hacked Fabricated ------------ Nothing Alien Tech Used ----------------- None Achievements -------------- None Challenges ------------ None Game ------ Seed VortexAlphaShifter Manual? 0 Play Time 00:19:12 Cumulative 330.3 hours Start 2023.09.19 @ 10:41:58 End 2023.09.19 @ 11:01:47 Sessions 1 Manual Loads 0 Difficulty Rogue Special Mode None Game No. 213 Rogue 210 Adventurer 3 Explorer 0 Win Type - Total 6 Types 5/0/1/0/0/0/0/0/0 Lore% 72 Gallery% 76 Achievement% 64 Wizard Run 0 Options --------- ASCII 0 Keyboard 0 Movement Numpad Keybinds 0 Fullscreen 1 Font 18/SmallcapsGlow Map View 76x50 Tactical HUD 1 Map Filters NONE Filters NONE Steam 1 RUN: 462c0bd4-fafb-40fb-8062-c0a51d45e66e